[Event "Titled Tuesday Blitz September 21 2021"]
[White "Manukian, Artak"]
[Black "Turzo, Attila"]
[WhiteFideId "13301373"]
[BlackFideId "704954"]
[WhiteElo "2283"]
[BlackElo "2461"]
[Result "0-1"]
[Round "09"]
[TimeControl "180+1"]
[Date "2021.09.21"]
[WhiteClock "0:00:06"]
[BlackClock "0:01:22"]

1. e4 {[%clk 0:02:34]}  c5 {[%clk 0:02:59]} 2. Nf3 {[%clk 0:02:33]}  e6 {[%clk 0:03:00]} 3. c3 {[%clk 0:02:33]}  Nf6 {[%clk 0:02:59]} 4. e5 {[%clk 0:02:34]}  Nd5 {[%clk 0:02:59]} 5. d4 {[%clk 0:02:34]}  cxd4 {[%clk 0:02:59]} 6. cxd4 {[%clk 0:02:34]}  d6 {[%clk 0:02:59]} 7. Nc3 {[%clk 0:02:34]}  Nxc3 {[%clk 0:02:56]} 8. bxc3 {[%clk 0:02:33]}  Be7 {[%clk 0:02:57]} 9. Bd3 {[%clk 0:02:32]}  O-O {[%clk 0:02:57]} 10. O-O {[%clk 0:02:32]}  dxe5 {[%clk 0:02:55]} 11. Nxe5 {[%clk 0:02:32]}  Nd7 {[%clk 0:02:53]} 12. Qh5 {[%clk 0:02:30]}  g6 {[%clk 0:02:45]} 13. Qe2 {[%clk 0:02:23]}  Nxe5 {[%clk 0:02:44]} 14. dxe5 {[%clk 0:02:23]}  Qc7 {[%clk 0:02:41]} 15. Bh6 {[%clk 0:02:19]}  Rd8 {[%clk 0:02:40]} 16. Rac1 {[%clk 0:02:17]}  Bd7 {[%clk 0:02:39]} 17. Bb1 {[%clk 0:02:01]}  Bc6 {[%clk 0:02:34]} 18. Rfe1 {[%clk 0:01:57]}  Rac8 {[%clk 0:02:20]} 19. Qg4 {[%clk 0:01:56]}  Be8 {[%clk 0:02:14]} 20. Bg5 {[%clk 0:01:52]}  Bxg5 {[%clk 0:02:13]} 21. Qxg5 {[%clk 0:01:52]}  Rd5 {[%clk 0:02:06]} 22. h4 {[%clk 0:01:29]}  Qd8 {[%clk 0:02:05]} 23. Qf4 {[%clk 0:01:22]}  Rcc5 {[%clk 0:01:59]} 24. h5 {[%clk 0:01:16]}  Qc7 {[%clk 0:01:54]} 25. hxg6 {[%clk 0:01:15]}  hxg6 {[%clk 0:01:52]} 26. Re3 {[%clk 0:00:53]}  Rxe5 {[%clk 0:01:51]} 27. g3 {[%clk 0:00:39]}  Rh5 {[%clk 0:01:44]} 28. Qxc7 {[%clk 0:00:28]}  Rxc7 {[%clk 0:01:41]} 29. Be4 {[%clk 0:00:28]}  Rhc5 {[%clk 0:01:37]} 30. Rd3 {[%clk 0:00:24]}  Kf8 {[%clk 0:01:34]} 31. f4 {[%clk 0:00:21]}  Ke7 {[%clk 0:01:34]} 32. Kf2 {[%clk 0:00:21]}  Bb5 {[%clk 0:01:30]} 33. Re3 {[%clk 0:00:20]}  Bc4 {[%clk 0:01:30]} 34. Rc2 {[%clk 0:00:18]}  Ra5 {[%clk 0:01:30]} 35. Rb2 {[%clk 0:00:12]}  Rxa2 {[%clk 0:01:28]} 36. Rxa2 {[%clk 0:00:12]}  Bxa2 {[%clk 0:01:29]} 37. Ke2 {[%clk 0:00:10]}  Bc4+ {[%clk 0:01:28]} 38. Kd2 {[%clk 0:00:11]}  b5 {[%clk 0:01:28]} 39. Kc2 {[%clk 0:00:11]}  a5 {[%clk 0:01:28]} 40. Kb2 {[%clk 0:00:11]}  Rd7 {[%clk 0:01:27]} 41. g4 {[%clk 0:00:07]}  Rd2+ {[%clk 0:01:26]} 42. Kc1 {[%clk 0:00:07]}  Rf2 {[%clk 0:01:24]} 43. f5 {[%clk 0:00:07]}  gxf5 {[%clk 0:01:22]} 44. gxf5 {[%clk 0:00:08]}  a4 {[%clk 0:01:22]} 45. fxe6 {[%clk 0:00:08]}  fxe6 {[%clk 0:01:22]} 46. Bc6 {[%clk 0:00:06]}  a3 {[%clk 0:01:22]} 0-1


[Site "https://www.chess.com"]

[Event "Titled Tuesday Blitz September 21 2021"]
[White "Nakamura, Hikaru"]
[Black "Lashkin, Jegor"]
[WhiteFideId "2016192"]
[BlackFideId "13907808"]
[WhiteElo "3196"]
[BlackElo "2911"]
[Result "1-0"]
[Round "09"]
[TimeControl "180+1"]
[Date "2021.09.21"]
[WhiteClock "0:01:24"]
[BlackClock "0:00:28"]

1. Nf3 {[%clk 0:03:00]}  d5 {[%clk 0:02:59]} 2. e3 {[%clk 0:02:59]}  Nf6 {[%clk 0:02:59]} 3. c4 {[%clk 0:02:59]}  e6 {[%clk 0:02:59]} 4. d4 {[%clk 0:02:58]}  a6 {[%clk 0:02:56]} 5. cxd5 {[%clk 0:02:57]}  exd5 {[%clk 0:02:55]} 6. g3 {[%clk 0:02:57]}  Bd6 {[%clk 0:02:48]} 7. Bg2 {[%clk 0:02:57]}  O-O {[%clk 0:02:49]} 8. O-O {[%clk 0:02:57]}  Re8 {[%clk 0:02:49]} 9. Nc3 {[%clk 0:02:56]}  c6 {[%clk 0:02:49]} 10. a3 {[%clk 0:02:53]}  a5 {[%clk 0:02:47]} 11. Qc2 {[%clk 0:02:52]}  g6 {[%clk 0:02:41]} 12. Nh4 {[%clk 0:02:41]}  Nbd7 {[%clk 0:02:35]} 13. b3 {[%clk 0:02:37]}  Nf8 {[%clk 0:02:33]} 14. Bb2 {[%clk 0:02:37]}  Ne6 {[%clk 0:02:33]} 15. Rfe1 {[%clk 0:02:28]}  Ng7 {[%clk 0:02:30]} 16. Rad1 {[%clk 0:02:19]}  Nf5 {[%clk 0:02:29]} 17. Nf3 {[%clk 0:02:18]}  Ng7 {[%clk 0:02:11]} 18. Ne5 {[%clk 0:02:16]}  Bf5 {[%clk 0:02:10]} 19. Qc1 {[%clk 0:02:16]}  Qb6 {[%clk 0:02:02]} 20. f3 {[%clk 0:02:15]}  Qxb3 {[%clk 0:02:00]} 21. e4 {[%clk 0:02:13]}  Be6 {[%clk 0:01:51]} 22. Nd3 {[%clk 0:02:06]}  dxe4 {[%clk 0:01:48]} 23. fxe4 {[%clk 0:02:06]}  Be7 {[%clk 0:01:32]} 24. Re3 {[%clk 0:02:02]}  Rad8 {[%clk 0:01:26]} 25. Nf4 {[%clk 0:01:59]}  Qb6 {[%clk 0:01:19]} 26. Na4 {[%clk 0:01:55]}  Qc7 {[%clk 0:01:18]} 27. d5 {[%clk 0:01:49]}  Bg4 {[%clk 0:01:18]} 28. Rf1 {[%clk 0:01:40]}  b5 {[%clk 0:01:12]} 29. e5 {[%clk 0:01:36]}  Nfh5 {[%clk 0:00:52]} 30. d6 {[%clk 0:01:28]}  Bxd6 {[%clk 0:00:32]} 31. exd6 {[%clk 0:01:27]}  Qa7 {[%clk 0:00:31]} 32. Nc5 {[%clk 0:01:27]}  Rxe3 {[%clk 0:00:28]} 33. Qxe3 {[%clk 0:01:28]}  Nf5 {[%clk 0:00:28]} 34. Qc3 {[%clk 0:01:24]} 1-0


[Site "https://www.chess.com"]

[Event "Titled Tuesday Blitz September 21 2021"]
[White "P., Komal Kishore"]
[Black "Qashashvili, Alexandre"]
[WhiteFideId "5016703"]
[BlackFideId "13600842"]
[WhiteElo "2161"]
[BlackElo "2316"]
[Result "0-1"]
[Round "09"]
[TimeControl "180+1"]
[Date "2021.09.21"]
[WhiteClock "0:00:39"]
[BlackClock "0:02:27"]

1. e4 {[%clk 0:01:38]}  c6 {[%clk 0:03:00]} 2. d4 {[%clk 0:01:35]}  d5 {[%clk 0:03:01]} 3. Nc3 {[%clk 0:01:32]}  dxe4 {[%clk 0:03:01]} 4. Nxe4 {[%clk 0:01:30]}  Nd7 {[%clk 0:03:02]} 5. Qe2 {[%clk 0:01:30]}  Ndf6 {[%clk 0:03:02]} 6. Ng3 {[%clk 0:01:28]}  Qxd4 {[%clk 0:02:56]} 7. Nf3 {[%clk 0:01:24]}  Qb6 {[%clk 0:02:52]} 8. Be3 {[%clk 0:01:21]}  Qxb2 {[%clk 0:02:52]} 9. Rd1 {[%clk 0:01:19]}  Bg4 {[%clk 0:02:50]} 10. Qd2 {[%clk 0:01:19]}  e6 {[%clk 0:02:41]} 11. Be2 {[%clk 0:01:01]}  Bb4 {[%clk 0:02:40]} 12. O-O {[%clk 0:00:50]}  Bxd2 {[%clk 0:02:39]} 13. Rxd2 {[%clk 0:00:48]}  Ne7 {[%clk 0:02:38]} 14. h3 {[%clk 0:00:47]}  Bxf3 {[%clk 0:02:38]} 15. Bxf3 {[%clk 0:00:47]}  O-O {[%clk 0:02:37]} 16. Re1 {[%clk 0:00:45]}  Rfd8 {[%clk 0:02:33]} 17. Rde2 {[%clk 0:00:44]}  Qxa2 {[%clk 0:02:31]} 18. Bg5 {[%clk 0:00:40]}  Ned5 {[%clk 0:02:27]} 19. c4 {[%clk 0:00:39]}  Qxc4 {[%clk 0:02:27]} 0-1


[Site "https://www.chess.com"]

[Event "Titled Tuesday Blitz September 21 2021"]
[White "Popadic, Dragan"]
[Black "De Silva, L M S T"]
[WhiteFideId "913650"]
[BlackFideId "9953698"]
[WhiteElo "2207"]
[BlackElo "1621"]
[Result "0-1"]
[Round "09"]
[TimeControl "180+1"]
[Date "2021.09.21"]
[WhiteClock "0:00:06"]
[BlackClock "0:01:53"]

1. e4 {[%clk 0:02:59]}  e5 {[%clk 0:02:59]} 2. d4 {[%clk 0:02:56]}  exd4 {[%clk 0:02:59]} 3. Qxd4 {[%clk 0:02:56]}  Nc6 {[%clk 0:03:00]} 4. Qe3 {[%clk 0:02:56]}  Nf6 {[%clk 0:03:00]} 5. Nc3 {[%clk 0:02:56]}  Bb4 {[%clk 0:02:59]} 6. Bd2 {[%clk 0:02:56]}  O-O {[%clk 0:03:00]} 7. O-O-O {[%clk 0:02:56]}  Re8 {[%clk 0:03:01]} 8. Qg3 {[%clk 0:02:56]}  Rxe4 {[%clk 0:02:59]} 9. a3 {[%clk 0:02:54]}  Bd6 {[%clk 0:02:56]} 10. f4 {[%clk 0:02:53]}  Re8 {[%clk 0:02:54]} 11. Bd3 {[%clk 0:02:51]}  Bf8 {[%clk 0:02:51]} 12. Nf3 {[%clk 0:02:50]}  d6 {[%clk 0:02:48]} 13. Ng5 {[%clk 0:02:50]}  h6 {[%clk 0:02:47]} 14. h4 {[%clk 0:02:50]}  Bg4 {[%clk 0:02:46]} 15. Rdf1 {[%clk 0:02:37]}  Qd7 {[%clk 0:02:43]} 16. Nf3 {[%clk 0:02:05]}  Ne7 {[%clk 0:02:36]} 17. Nh2 {[%clk 0:01:50]}  Nf5 {[%clk 0:02:33]} 18. Qf2 {[%clk 0:01:48]}  h5 {[%clk 0:02:29]} 19. Re1 {[%clk 0:01:32]}  g6 {[%clk 0:02:28]} 20. Nf3 {[%clk 0:01:25]}  Bxf3 {[%clk 0:02:26]} 21. Qxf3 {[%clk 0:01:23]}  Bg7 {[%clk 0:02:26]} 22. Ne4 {[%clk 0:01:14]}  Ng4 {[%clk 0:02:22]} 23. g3 {[%clk 0:01:00]}  Nd4 {[%clk 0:02:19]} 24. Qf1 {[%clk 0:00:48]}  c5 {[%clk 0:02:19]} 25. Ng5 {[%clk 0:00:42]}  d5 {[%clk 0:02:18]} 26. Bc3 {[%clk 0:00:39]}  c4 {[%clk 0:02:16]} 27. Be2 {[%clk 0:00:32]}  Nxe2+ {[%clk 0:02:16]} 28. Rxe2 {[%clk 0:00:32]}  Bxc3 {[%clk 0:02:17]} 29. bxc3 {[%clk 0:00:31]}  Qd6 {[%clk 0:02:13]} 30. Kb2 {[%clk 0:00:30]}  Qb6+ {[%clk 0:02:11]} 31. Ka2 {[%clk 0:00:28]}  Qa5 {[%clk 0:02:11]} 32. Rxe8+ {[%clk 0:00:19]}  Rxe8 {[%clk 0:02:11]} 33. Qa1 {[%clk 0:00:17]}  Re2 {[%clk 0:02:09]} 34. Rc1 {[%clk 0:00:16]}  Ne3 {[%clk 0:02:06]} 35. Qb2 {[%clk 0:00:15]}  Qa4 {[%clk 0:02:05]} 36. Kb1 {[%clk 0:00:14]}  b5 {[%clk 0:02:02]} 37. Nf3 {[%clk 0:00:13]}  Nf5 {[%clk 0:01:57]} 38. Ne5 {[%clk 0:00:10]}  a5 {[%clk 0:01:56]} 39. Rd1 {[%clk 0:00:10]}  b4 {[%clk 0:01:53]} 40. axb4 {[%clk 0:00:09]}  axb4 {[%clk 0:01:54]} 41. Qxb4 {[%clk 0:00:06]}  Qxc2+ {[%clk 0:01:53]} 0-1


[Site "https://www.chess.com"]

[Event "Titled Tuesday Blitz September 21 2021"]
[White "Pourkashiyan, Atousa"]
[Black "Thomas, Anysia"]
[WhiteFideId "12502014"]
[BlackFideId "670472"]
[WhiteElo "2285"]
[BlackElo "2004"]
[Result "1/2-1/2"]
[Round "09"]
[TimeControl "180+1"]
[Date "2021.09.21"]
[WhiteClock "0:00:14"]
[BlackClock "0:00:09"]

1. e4 {[%clk 0:02:51]}  c5 {[%clk 0:02:59]} 2. Nf3 {[%clk 0:02:50]}  g6 {[%clk 0:02:59]} 3. d4 {[%clk 0:02:50]}  cxd4 {[%clk 0:03:00]} 4. Nxd4 {[%clk 0:02:50]}  Nc6 {[%clk 0:03:00]} 5. Be3 {[%clk 0:02:47]}  Bg7 {[%clk 0:03:00]} 6. c4 {[%clk 0:02:41]}  Nf6 {[%clk 0:02:57]} 7. Nc3 {[%clk 0:02:37]}  Ng4 {[%clk 0:02:57]} 8. Qxg4 {[%clk 0:02:29]}  Nxd4 {[%clk 0:02:57]} 9. Qd1 {[%clk 0:02:29]}  e5 {[%clk 0:02:56]} 10. Bd3 {[%clk 0:02:07]}  O-O {[%clk 0:02:50]} 11. O-O {[%clk 0:01:57]}  d6 {[%clk 0:02:50]} 12. Nd5 {[%clk 0:01:49]}  Be6 {[%clk 0:02:48]} 13. Rc1 {[%clk 0:01:46]}  Rc8 {[%clk 0:02:34]} 14. b3 {[%clk 0:01:32]}  f5 {[%clk 0:02:21]} 15. exf5 {[%clk 0:01:17]}  gxf5 {[%clk 0:01:31]} 16. Bxd4 {[%clk 0:01:11]}  Bxd5 {[%clk 0:01:15]} 17. Bxa7 {[%clk 0:00:59]}  Bc6 {[%clk 0:01:12]} 18. Qh5 {[%clk 0:00:49]}  e4 {[%clk 0:00:51]} 19. Bb1 {[%clk 0:00:47]}  Ra8 {[%clk 0:00:51]} 20. Be3 {[%clk 0:00:43]}  f4 {[%clk 0:00:51]} 21. Bd2 {[%clk 0:00:43]}  Qf6 {[%clk 0:00:35]} 22. Bc3 {[%clk 0:00:42]}  Qe7 {[%clk 0:00:26]} 23. Rfe1 {[%clk 0:00:34]}  Rae8 {[%clk 0:00:25]} 24. Bxg7 {[%clk 0:00:32]}  Qxg7 {[%clk 0:00:24]} 25. Rcd1 {[%clk 0:00:31]}  f3 {[%clk 0:00:20]} 26. g3 {[%clk 0:00:30]}  Rf6 {[%clk 0:00:18]} 27. Rd5 {[%clk 0:00:25]}  Rh6 {[%clk 0:00:11]} 28. Qg5 {[%clk 0:00:19]}  Rg6 {[%clk 0:00:11]} 29. Qh5 {[%clk 0:00:17]}  Rh6 {[%clk 0:00:11]} 30. Qf5 {[%clk 0:00:16]}  Rf6 {[%clk 0:00:09]} 31. Qh5 {[%clk 0:00:14]}  Rh6 {[%clk 0:00:09]} 1/2-1/2


[Site "https://www.chess.com"]

[Event "Titled Tuesday Blitz September 21 2021"]
[White "Roebers, Jan"]
[Black "Obolentseva, Alexandra"]
[WhiteFideId "1007815"]
[BlackFideId "24153648"]
[WhiteElo "2239"]
[BlackElo "2113"]
[Result "0-1"]
[Round "09"]
[TimeControl "180+1"]
[Date "2021.09.21"]
[WhiteClock "0:00:20"]
[BlackClock "0:02:02"]

1. e4 {[%clk 0:00:13]}  c5 {[%clk 0:02:58]} 2. d4 {[%clk 0:00:13]}  cxd4 {[%clk 0:02:56]} 3. c3 {[%clk 0:00:13]}  d6 {[%clk 0:02:54]} 4. cxd4 {[%clk 0:00:12]}  Nf6 {[%clk 0:02:50]} 5. Nc3 {[%clk 0:00:13]}  a6 {[%clk 0:02:48]} 6. Nf3 {[%clk 0:00:14]}  g6 {[%clk 0:02:47]} 7. Be2 {[%clk 0:00:15]}  Bg7 {[%clk 0:02:47]} 8. O-O {[%clk 0:00:16]}  O-O {[%clk 0:02:43]} 9. Be3 {[%clk 0:00:17]}  b5 {[%clk 0:02:05]} 10. Qd2 {[%clk 0:00:17]}  Bb7 {[%clk 0:02:04]} 11. a3 {[%clk 0:00:18]}  Nxe4 {[%clk 0:02:03]} 12. d5 {[%clk 0:00:19]}  Nxd2 {[%clk 0:02:02]} 13. Ne4 {[%clk 0:00:20]}  Nxe4 {[%clk 0:02:02]} 0-1


[Site "https://www.chess.com"]

[Event "Titled Tuesday Blitz September 21 2021"]
[White "Silva, Miguel Antonio Neto"]
[Black "Terletsky, Oleg"]
[WhiteFideId "1911929"]
[BlackFideId "14116774"]
[WhiteElo "2283"]
[BlackElo "2086"]
[Result "1-0"]
[Round "09"]
[TimeControl "180+1"]
[Date "2021.09.21"]
[WhiteClock "0:01:11"]
[BlackClock "0:01:07"]

1. e4 {[%clk 0:02:18]}  e5 {[%clk 0:02:57]} 2. Nf3 {[%clk 0:02:18]}  Nc6 {[%clk 0:02:57]} 3. Bc4 {[%clk 0:02:16]}  Nf6 {[%clk 0:02:56]} 4. d3 {[%clk 0:02:09]}  h6 {[%clk 0:02:56]} 5. c3 {[%clk 0:02:04]}  d6 {[%clk 0:02:56]} 6. Bb3 {[%clk 0:02:03]}  g6 {[%clk 0:02:56]} 7. Nbd2 {[%clk 0:02:00]}  Bg7 {[%clk 0:02:55]} 8. O-O {[%clk 0:01:59]}  O-O {[%clk 0:02:55]} 9. Re1 {[%clk 0:01:56]}  Na5 {[%clk 0:02:55]} 10. Bc2 {[%clk 0:01:55]}  c5 {[%clk 0:02:56]} 11. b4 {[%clk 0:01:51]}  Nc6 {[%clk 0:02:49]} 12. bxc5 {[%clk 0:01:46]}  dxc5 {[%clk 0:02:49]} 13. Ba3 {[%clk 0:01:47]}  b6 {[%clk 0:02:45]} 14. Ba4 {[%clk 0:01:44]}  Bb7 {[%clk 0:02:40]} 15. Bxc6 {[%clk 0:01:43]}  Bxc6 {[%clk 0:02:40]} 16. Nxe5 {[%clk 0:01:40]}  Bb7 {[%clk 0:02:40]} 17. d4 {[%clk 0:01:39]}  Re8 {[%clk 0:02:33]} 18. Qb3 {[%clk 0:01:35]}  Qc7 {[%clk 0:01:50]} 19. Rad1 {[%clk 0:01:31]}  cxd4 {[%clk 0:01:34]} 20. cxd4 {[%clk 0:01:29]}  Rad8 {[%clk 0:01:35]} 21. Rc1 {[%clk 0:01:22]}  Qb8 {[%clk 0:01:07]} 22. Qxf7+ {[%clk 0:01:18]}  Kh7 {[%clk 0:01:07]} 23. Qxg6+ {[%clk 0:01:15]}  Kg8 {[%clk 0:01:07]} 24. Qf7+ {[%clk 0:01:11]}  Kh7 {[%clk 0:01:07]} 25. Rc7 {[%clk 0:01:11]} 1-0


[Site "https://www.chess.com"]

[Event "Titled Tuesday Blitz September 21 2021"]
[White "Topper2004"]
[Black "Czerw, Dawid"]
[BlackFideId "1145746"]
[WhiteElo "2259"]
[BlackElo "2075"]
[Result "0-1"]
[Round "09"]
[TimeControl "180+1"]
[Date "2021.09.21"]
[WhiteClock "0:01:07"]
[BlackClock "0:00:41"]

1. b3 {[%clk 0:03:00]}  g6 {[%clk 0:02:55]} 2. Bb2 {[%clk 0:03:00]}  Nf6 {[%clk 0:02:55]} 3. e3 {[%clk 0:03:00]}  Bg7 {[%clk 0:02:55]} 4. f4 {[%clk 0:03:01]}  O-O {[%clk 0:02:55]} 5. Nf3 {[%clk 0:03:01]}  d6 {[%clk 0:02:56]} 6. Ke2 {[%clk 0:03:01]}  Nbd7 {[%clk 0:02:56]} 7. h3 {[%clk 0:02:59]}  Ne4 {[%clk 0:02:51]} 8. Bxg7 {[%clk 0:02:53]}  Ng3+ {[%clk 0:02:50]} 9. Ke1 {[%clk 0:02:48]}  Kxg7 {[%clk 0:02:49]} 10. Rg1 {[%clk 0:02:47]}  e5 {[%clk 0:02:48]} 11. fxe5 {[%clk 0:02:44]}  dxe5 {[%clk 0:02:49]} 12. d3 {[%clk 0:02:43]}  Nf6 {[%clk 0:02:39]} 13. Nc3 {[%clk 0:02:40]}  Nd5 {[%clk 0:02:31]} 14. Qd2 {[%clk 0:02:36]}  c6 {[%clk 0:02:22]} 15. Nxd5 {[%clk 0:02:27]}  cxd5 {[%clk 0:02:22]} 16. Qc3 {[%clk 0:02:27]}  f6 {[%clk 0:02:16]} 17. Kf2 {[%clk 0:02:26]}  Nf5 {[%clk 0:02:13]} 18. g4 {[%clk 0:02:26]}  Nd6 {[%clk 0:02:11]} 19. Bg2 {[%clk 0:02:25]}  Be6 {[%clk 0:02:11]} 20. Rge1 {[%clk 0:02:20]}  Rc8 {[%clk 0:02:11]} 21. Qd2 {[%clk 0:02:18]}  Qb6 {[%clk 0:02:08]} 22. Kg3 {[%clk 0:02:17]}  h5 {[%clk 0:01:47]} 23. g5 {[%clk 0:02:15]}  Nf5+ {[%clk 0:01:46]} 24. Kh2 {[%clk 0:02:14]}  e4 {[%clk 0:01:40]} 25. dxe4 {[%clk 0:02:09]}  dxe4 {[%clk 0:01:34]} 26. gxf6+ {[%clk 0:02:09]}  Rxf6 {[%clk 0:01:33]} 27. Nd4 {[%clk 0:02:06]}  Nxd4 {[%clk 0:01:24]} 28. Qxd4 {[%clk 0:02:04]}  Rxc2 {[%clk 0:01:21]} 29. Rec1 {[%clk 0:01:44]}  Qc7+ {[%clk 0:01:17]} 30. Kg1 {[%clk 0:01:29]}  Rxc1+ {[%clk 0:01:08]} 31. Rxc1 {[%clk 0:01:25]}  Qxc1+ {[%clk 0:01:09]} 32. Kh2 {[%clk 0:01:26]}  Qc7+ {[%clk 0:01:06]} 33. Kg1 {[%clk 0:01:25]}  Qg3 {[%clk 0:01:02]} 34. Qxa7 {[%clk 0:01:16]}  Bxh3 {[%clk 0:00:54]} 35. Qxb7+ {[%clk 0:01:15]}  Rf7 {[%clk 0:00:49]} 36. Qxe4 {[%clk 0:01:14]}  Bxg2 {[%clk 0:00:44]} 37. Qxg2 {[%clk 0:01:13]}  Qe1+ {[%clk 0:00:43]} 38. Kh2 {[%clk 0:01:11]}  Rf2 {[%clk 0:00:43]} 39. a4 {[%clk 0:01:11]}  Rxg2+ {[%clk 0:00:42]} 40. Kxg2 {[%clk 0:01:11]}  Qxe3 {[%clk 0:00:42]} 41. a5 {[%clk 0:01:11]}  h4 {[%clk 0:00:42]} 42. a6 {[%clk 0:01:11]}  Qg3+ {[%clk 0:00:41]} 43. Kf1 {[%clk 0:01:09]}  Qf3+ {[%clk 0:00:41]} 44. Ke1 {[%clk 0:01:07]}  h3 {[%clk 0:00:40]} 45. a7 {[%clk 0:01:07]}  h2 {[%clk 0:00:41]} 46. a8=Q {[%clk 0:01:07]}  h1=Q+ {[%clk 0:00:40]} 47. Kd2 {[%clk 0:01:07]}  Qhd1# {[%clk 0:00:41]} 0-1


[Site "https://www.chess.com"]